bitfinex/quotes_BTCUSD_20240623
["timestamp","ask_amount","ask_price","bid_price","bid_amount"]
[1719164360959,0.30198845,64226.0,64225.0,0.33668983]
[1719164361336,0.30198845,64226.0,64225.0,0.35668983]
[1719164363252,0.61338845,64226.0,64225.0,0.35668983]
[1719164363462,0.61323784,64226.0,64225.0,0.35668983]
[1719164365169,0.49067057,64226.0,64225.0,0.35668983]
[1719164365495,0.61323564,64226.0,64225.0,0.35668983]
[1719164366089,0.56083564,64226.0,64225.0,0.35668983]
[1719164366487,0.61323564,64226.0,64225.0,0.35668983]
[1719164366880,0.61339022,64226.0,64225.0,0.35668983]
[1719164367096,0.56099022,64226.0,64225.0,0.35668983]
[1719164367263,0.61339022,64226.0,64225.0,0.35668983]
[1719164367468,0.24959022,64226.0,64225.0,0.35668983]
[1719164367648,0.30199022,64226.0,64225.0,0.35668983]
[1719164369669,0.28035982,64226.0,64225.0,0.35668983]
[1719164369844,0.30201739,64226.0,64225.0,0.35668983]
[1719164370048,0.21019543,64226.0,64225.0,0.35668983]
[1719164370261,0.30208917,64226.0,64225.0,0.35668983]
[1719164371277,0.28035989,64226.0,64225.0,0.35668983]
[1719164371456,0.30218423,64226.0,64225.0,0.35668983]
[1719164371881,0.23201977,64226.0,64225.0,0.35668983]
[1719164372124,0.30218423,64226.0,64225.0,0.35668983]
[1719164372605,0.23201977,64226.0,64225.0,0.35668983]
[1719164372905,0.23203474,64226.0,64225.0,0.35668983]
[1719164374710,0.30219842,64226.0,64225.0,0.35668983]
[1719164375790,0.23199006,64226.0,64225.0,0.35668983]
[1719164376008,0.27205836,64226.0,64225.0,0.35668983]
[1719164377048,0.20189444,64226.0,64225.0,0.35668983]
[1719164377684,0.07504463,64226.0,64225.0,0.35668983]
[1719164378074,0.14520855,64226.0,64225.0,0.35668983]
[1719164378281,0.15217763,64226.0,64225.0,0.35668983]
[1719164378519,0.08201371,64226.0,64225.0,0.35668983]
[1719164378672,0.02961371,64226.0,64225.0,0.76549183]
[1719164378866,0.08194291,64226.0,64225.0,0.76549183]
[1719164379586,0.08194291,64226.0,64225.0,0.76549194]
[1719164380396,0.12871783,64226.0,64225.0,0.76549194]
[1719164380600,0.12871783,64226.0,64225.0,1.38830194]
[1719164380857,0.12174875,64226.0,64225.0,1.38620194]
[1719164381035,0.07497383,64226.0,64225.0,1.38620194]
[1719164381813,0.05325,64226.0,64225.0,1.38620194]
[1719164382011,0.07474269,64226.0,64225.0,1.38620194]
[1719164383942,0.08171286,64226.0,64225.0,1.07479694]
[1719164384572,0.08171286,64226.0,64225.0,1.07479693]
[1719164385041,0.08188346,64226.0,64225.0,1.07479693]
[1719164386355,0.08188346,64226.0,64225.0,0.80169693]
[1719164386566,0.12865431,64226.0,64225.0,0.51029193]
[1719164387910,0.08166383,64226.0,64225.0,0.51029193]
[1719164388054,0.12844671,64226.0,64225.0,0.51029193]
[1719164388473,0.10698725,64226.0,64225.0,0.51029193]
[1719164388642,0.1284467,64226.0,64225.0,0.51029193]
[1719164389263,0.1284467,64226.0,64225.0,0.35458993]
[1719164389659,0.12843379,64226.0,64225.0,0.33458993]
[1719164389856,0.08166671,64226.0,64225.0,0.33458993]
[1719164390589,0.08166671,64226.0,64225.0,0.35458993]
[1719164390966,0.06022017,64226.0,64225.0,0.35458993]
[1719164391165,0.08178915,64226.0,64225.0,0.35458993]
[1719164392921,0.08178915,64226.0,64225.0,0.33458993]
[1719164393978,0.06022017,64226.0,64225.0,0.33458993]
[1719164394175,0.0817643,64226.0,64225.0,0.33458993]
[1719164394541,0.0293643,64226.0,64225.0,0.35458993]
[1719164394812,0.0817643,64226.0,64225.0,0.35458993]
[1719164397078,0.06022017,64226.0,64225.0,0.35458993]
[1719164397279,0.08185108,64226.0,64225.0,0.35458993]
[1719164397484,0.02945108,64226.0,64225.0,0.35458993]
[1719164397687,0.08185108,64226.0,64225.0,0.35458993]
[1719164397910,0.07621874,64226.0,64225.0,0.35458993]
[1719164398117,0.08185108,64226.0,64225.0,0.35458993]
[1719164398287,0.02945108,64226.0,64225.0,0.35458993]
[1719164398548,0.08185108,64226.0,64225.0,0.35458993]
[1719164399166,0.02945108,64226.0,64225.0,0.35458993]
[1719164399497,0.08185108,64226.0,64225.0,0.35458993]
[1719164400153,0.06022017,64226.0,64225.0,0.35458993]
[1719164400362,0.08185279,64226.0,64225.0,0.35458993]
[1719164400945,0.12862055,64226.0,64225.0,0.35458993]
[1719164402029,0.28432055,64226.0,64225.0,0.02698993]
[1719164402195,0.59572055,64226.0,64225.0,0.02698993]
[1719164402418,0.59572055,64226.0,64225.0,0.10698993]
[1719164402419,1.53525279,64226.0,64225.0,0.10698993]
[1719164402756,1.97214009,64226.0,64225.0,0.10698993]
[1719164402981,2.28354009,64226.0,64225.0,0.10698993]
[1719164403204,2.63610121,64226.0,64225.0,0.10698993]
[1719164403389,2.49325248,64226.0,64225.0,0.10698993]
[1719164403596,2.49325248,64226.0,64225.0,0.09415493]
[1719164403876,3.00465248,64226.0,64225.0,0.08015493]
[1719164404034,1.183586,64222.0,64221.0,0.000935]
[1719164404180,1.97260917,64222.0,64221.0,0.000935]
[1719164404386,2.28402817,64222.0,64221.0,0.000935]
[1719164404619,2.34843552,64222.0,64221.0,0.000935]
[1719164405201,2.26239555,64222.0,64221.0,0.000935]
[1719164405400,2.35597495,64222.0,64221.0,0.000935]
[1719164405604,2.29139223,64222.0,64221.0,0.000935]
[1719164405853,2.2913921,64222.0,64221.0,0.000935]
[1719164406284,2.2943921,64222.0,64221.0,0.000935]
[1719164406737,2.2913921,64222.0,64221.0,0.000935]
[1719164406936,2.2943921,64222.0,64221.0,0.001935]
[1719164407552,2.49754782,64222.0,64221.0,0.001935]
[1719164407907,2.3622334,64222.0,64221.0,0.001935]
[1719164408317,2.36234004,64222.0,64221.0,0.001935]
[1719164408530,2.29765427,64222.0,64221.0,0.001935]
[1719164408932,2.45021539,64222.0,64221.0,0.001935]
[1719164409866,2.44926887,64222.0,64221.0,0.001935]
[1719164411440,2.44935592,64222.0,64221.0,0.001935]
[1719164412020,2.64935592,64222.0,64221.0,0.001935]
[1719164412136,0.818249,64214.0,64213.0,0.08]
[1719164412336,1.45617555,64214.0,64213.0,0.08]
[1719164412581,2.75398064,64214.0,64213.0,0.08]
[1719164412758,2.73740077,64214.0,64213.0,0.08]
[1719164413296,3.04885877,64214.0,64213.0,0.08]
[1719164413731,3.04885877,64214.0,64213.0,0.009]
[1719164413868,2.064256,64206.0,64205.0,0.08]
[1719164414073,2.29151694,64206.0,64205.0,0.08]
[1719164414347,2.29929745,64206.0,64205.0,0.08]
[1719164414676,2.22489502,64206.0,64205.0,0.08]
[1719164414893,2.29924834,64206.0,64205.0,0.08]
[1719164415087,2.2526506,64206.0,64205.0,0.08]
[1719164415295,2.29923229,64206.0,64205.0,0.08]
[1719164415490,2.29923229,64206.0,64205.0,0.089]
[1719164415771,2.29938801,64206.0,64205.0,0.089]
[1719164415984,2.29934917,64206.0,64205.0,0.097]
[1719164416199,2.25276882,64206.0,64205.0,0.097]
[1719164416653,2.25276882,64206.0,64205.0,0.089]
[1719164416654,2.25176882,64206.0,64205.0,0.089]
[1719164416863,2.38832994,64206.0,64205.0,0.08]
[1719164417075,2.38832994,64206.0,64205.0,0.081]
[1719164417300,2.38837425,64206.0,64205.0,0.081]
[1719164417932,2.58837425,64206.0,64205.0,0.081]
[1719164418138,2.58837425,64206.0,64205.0,0.001]
[1719164418139,2.94747125,64206.0,64205.0,0.001]
[1719164418347,2.94747125,64206.0,64198.0,0.08]
[1719164418348,1.802809,64199.0,64198.0,0.08]
[1719164418571,2.38013251,64199.0,64198.0,0.08]
[1719164418773,2.58834502,64199.0,64198.0,0.08]
[1719164419737,2.58934502,64199.0,64198.0,0.088]
[1719164419966,2.58934502,64199.0,64184.0,0.5906]
[1719164419967,1.402042,64192.0,64191.0,0.08]
[1719164420170,2.213262,64192.0,64191.0,0.08]
[1719164420328,2.36582312,64192.0,64191.0,0.08]
[1719164420522,2.36582312,64192.0,64181.0,0.000935]
[1719164420523,0.467419,64182.0,64181.0,0.000935]
[1719164420793,1.548278,64182.0,64181.0,0.000935]
[1719164420960,1.65647442,64182.0,64181.0,0.000935]
[1719164421706,1.60407442,64182.0,64181.0,0.000935]
[1719164421936,1.65763014,64182.0,64181.0,0.009935]
[1719164422973,1.65863014,64182.0,64181.0,0.017935]
[1719164424577,1.50282414,64182.0,64181.0,0.017935]
[1719164424796,1.60623014,64182.0,64181.0,0.017935]
[1719164425051,1.65863014,64182.0,64181.0,0.017935]
[1719164425180,1.29461714,64182.0,64181.0,0.017935]
[1719164425379,1.34701714,64182.0,64181.0,0.017935]
[1719164425822,1.29461714,64182.0,64181.0,0.017935]
[1719164426027,1.34701714,64182.0,64181.0,0.017935]
[1719164426232,0.31855814,64182.0,64181.0,0.328735]
[1719164426375,0.94178414,64182.0,64181.0,0.579535]
[1719164428967,0.94178414,64182.0,64181.0,0.268735]
[1719164429192,0.94178414,64182.0,64181.0,0.017935]
[1719164429193,1.03540414,64182.0,64181.0,0.017935]
[1719164429340,1.34701714,64182.0,64181.0,0.017935]
[1719164434710,1.29461714,64182.0,64181.0,0.017935]
[1719164434913,1.34701714,64182.0,64181.0,0.017935]
[1719164435114,1.36888389,64182.0,64181.0,0.017935]
[1719164438870,1.31648389,64182.0,64181.0,0.017935]
[1719164439061,1.36888389,64182.0,64181.0,0.017935]
[1719164445755,1.10288147,64182.0,64181.0,0.017935]
[1719164445954,1.26550825,64182.0,64181.0,0.017935]
[1719164446155,1.29050416,64182.0,64181.0,0.017935]
[1719164446650,1.23810416,64182.0,64181.0,0.017935]
[1719164446759,1.21310825,64182.0,64181.0,0.017935]
[1719164446959,1.26550825,64182.0,64181.0,0.017935]
[1719164447372,1.29050454,64182.0,64181.0,0.017935]
[1719164448017,1.39050454,64182.0,64181.0,0.017935]
[1719164450215,1.05389525,64182.0,64181.0,0.017935]
[1719164450640,1.07900619,64182.0,64181.0,0.017935]
[1719164450888,1.07899156,64182.0,64181.0,0.017935]
[1719164452042,1.07897871,64182.0,64181.0,0.017935]
[1719164453301,1.08577514,64182.0,64181.0,0.017935]
[1719164453475,1.11096373,64182.0,64181.0,0.017935]
[1719164455048,1.11181373,64182.0,64181.0,0.017935]
[1719164456514,1.11184402,64182.0,64181.0,0.017935]
[1719164459440,1.11183258,64182.0,64181.0,0.017935]
[1719164460056,1.11188404,64182.0,64181.0,0.017935]
[1719164460706,1.42349704,64182.0,64181.0,0.017935]
[1719164461245,1.47018711,64182.0,64181.0,0.017935]
[1719164461471,1.42349704,64182.0,64181.0,0.017935]
[1719164461699,1.42346958,64182.0,64181.0,0.017935]
[1719164462078,1.37106958,64182.0,64181.0,0.017935]
[1719164462303,1.0526358,64182.0,64181.0,0.017935]
[1719164462504,1.1050358,64182.0,64181.0,0.017935]
[1719164462778,1.4166488,64182.0,64181.0,0.017935]
[1719164463207,1.19846538,64182.0,64181.0,0.017935]
[1719164463504,1.1050358,64182.0,64181.0,0.017935]
[1719164463703,1.1050358,64182.0,64181.0,0.325435]
[1719164464511,1.10454449,64182.0,64181.0,0.325435]
[1719164464687,1.22148177,64182.0,64181.0,0.325435]
[1719164465266,1.10454449,64182.0,64181.0,0.325435]
[1719164467198,1.05214449,64182.0,64181.0,0.325435]
[1719164467390,1.10454449,64182.0,64181.0,0.325435]
[1719164467634,1.10489695,64182.0,64181.0,0.325435]
[1719164468013,1.1051325,64182.0,64181.0,0.325435]
[1719164468213,1.11195133,64182.0,64181.0,0.325435]
[1719164469256,1.11197386,64182.0,64181.0,0.325435]
[1719164469802,1.08662319,64182.0,64181.0,0.325435]
[1719164470056,1.11192701,64182.0,64181.0,0.325435]
[1719164470820,1.11181003,64182.0,64181.0,0.325435]
[1719164473877,1.07980436,64182.0,64181.0,0.325435]
[1719164474073,1.1048193,64182.0,64181.0,0.325435]
[1719164474255,1.1048193,64182.0,64181.0,0.017935]
[1719164476733,1.07980436,64182.0,64181.0,0.017935]
[1719164476952,1.10441523,64182.0,64181.0,0.017935]
[1719164477198,1.07980436,64182.0,64181.0,0.017935]
[1719164477426,1.10435327,64182.0,64181.0,0.017935]
[1719164478576,1.10427772,64182.0,64181.0,0.017935]
[1719164479609,1.05187772,64182.0,64181.0,0.017935]
[1719164479810,1.10427772,64182.0,64181.0,0.017935]
[1719164482301,1.05187772,64182.0,64181.0,0.017935]
[1719164482501,1.10427772,64182.0,64181.0,0.267835]
[1719164482939,1.07980436,64182.0,64181.0,0.267835]
[1719164483274,1.10499089,64182.0,64181.0,0.267835]
[1719164485038,1.05259089,64182.0,64181.0,0.267835]
[1719164485243,1.10499089,64182.0,64181.0,0.267835]
[1719164486497,1.1050886,64182.0,64181.0,0.267835]
[1719164488918,1.10510091,64182.0,64181.0,0.267835]
[1719164492059,1.10503942,64182.0,64181.0,0.267835]
[1719164492767,0.17998742,64182.0,64181.0,0.607835]
[1719164492970,0.02624078,64182.0,64181.0,1.15290718]
[1719164493192,0.02624078,64182.0,64181.0,1.77614318]
[1719164493618,0.00100572,64182.0,64181.0,1.77614318]
[1719164494166,0.00100572,64182.0,64181.0,1.45552518]
[1719164494466,0.00100572,64182.0,64181.0,1.46952518]
[1719164494665,0.00100572,64182.0,64181.0,1.38388]
[1719164495292,0.00100572,64182.0,64181.0,1.39788]
[1719164501264,0.00100572,64182.0,64181.0,1.086262]
[1719164507291,0.00100572,64182.0,64181.0,1.096262]
[1719164508751,0.00100572,64182.0,64181.0,1.40788]
[1719164509546,0.02340572,64188.0,64187.0,0.8785]
[1719164509960,0.04966736,64188.0,64187.0,0.8785]
[1719164510759,0.04966736,64188.0,64187.0,0.8855]
[1719164510960,0.01966736,64188.0,64187.0,0.8855]
[1719164511666,0.07206736,64188.0,64187.0,0.8935]
[1719164512979,0.0224,64188.0,64187.0,0.8935]
[1719164513088,0.0224,64188.0,64187.0,0.89365471]
[1719164514330,0.02133356,64189.0,64188.0,0.02]
[1719164514536,0.38159309,64195.0,64188.0,0.02]
[1719164514537,0.1,64191.0,64188.0,0.02]
[1719164514744,0.2024699,64193.0,64192.0,0.02]
[1719164514948,0.3024699,64193.0,64192.0,0.02]
[1719164515153,0.3548699,64193.0,64192.0,0.02]
[1719164515725,0.3548699,64193.0,64190.0,0.00015471]
[1719164515726,0.155783,64192.0,64190.0,0.02015471]
[1719164515933,0.1,64191.0,64190.0,0.00015471]
[1719164516353,0.09984529,64191.0,64188.0,0.02]
[1719164516587,0.0524,64189.0,64188.0,0.02]
[1719164518821,0.0524,64189.0,64188.0,0.007]
[1719164518822,0.20819,64189.0,64188.0,0.007]
[1719164519050,0.30819,64189.0,64188.0,0.007]
[1719164519463,0.30819,64189.0,64188.0,0.013]
[1719164520107,0.3083458,64189.0,64188.0,0.013]
[1719164520691,0.2559458,64189.0,64188.0,0.033]
[1719164520942,0.2559458,64189.0,64188.0,0.013]
[1719164520943,0.33372015,64189.0,64188.0,0.013]
[1719164521697,0.3083458,64189.0,64188.0,0.013]
[1719164521898,0.33383568,64189.0,64188.0,0.013]
[1719164523518,0.64541468,64189.0,64188.0,0.013]
[1719164525166,0.94921468,64189.0,64188.0,0.013]
[1719164525990,0.64541468,64189.0,64188.0,0.033]
[1719164527314,0.33383568,64189.0,64188.0,0.033]
[1719164527515,0.34022593,64189.0,64188.0,0.033]
[1719164527717,0.36597128,64189.0,64188.0,0.033]
[1719164529152,0.36597128,64189.0,64188.0,0.013]
[1719164530120,0.36601242,64189.0,64188.0,0.013]
[1719164530519,0.34022593,64189.0,64188.0,0.013]
[1719164530741,0.36583703,64189.0,64188.0,0.013]
[1719164530928,0.65180493,64189.0,64188.0,0.013]
[1719164531144,0.72413772,64189.0,64188.0,0.013]
[1719164531370,1.03571672,64189.0,64188.0,0.013]
[1719164531577,1.61071672,64189.0,64188.0,0.013]
[1719164532010,1.63407737,64189.0,64188.0,0.013]
[1719164532212,1.63408769,64189.0,64188.0,0.013]
[1719164532410,1.56399541,64189.0,64188.0,0.013]
[1719164532616,1.63409561,64189.0,64188.0,0.013]
[1719164532835,1.56399541,64189.0,64188.0,0.013]
[1719164533245,1.63409641,64189.0,64188.0,0.013]
[1719164533449,1.56399541,64189.0,64188.0,0.013]
[1719164533657,1.5637538,64189.0,64188.0,0.013]
[1719164534391,2.12151392,64189.0,64188.0,0.013]
[1719164534804,2.18260448,64189.0,64188.0,0.013]
[1719164535289,2.12151392,64189.0,64188.0,0.013]
[1719164536980,2.14256887,64189.0,64188.0,0.013]
[1719164540177,2.14251938,64189.0,64188.0,0.013]
[1719164541395,2.14231901,64189.0,64188.0,0.013]
[1719164542884,2.14230158,64189.0,64188.0,0.013]
[1719164545690,2.14196539,64189.0,64188.0,0.013]
[1719164548295,2.45354439,64189.0,64188.0,0.013]
[1719164548502,2.51401478,64189.0,64188.0,0.013]
[1719164548649,2.48925003,64189.0,64188.0,0.013]
[1719164548851,2.71462228,64189.0,64188.0,0.013]
[1719164549058,2.48925003,64189.0,64188.0,0.013]
[1719164549256,2.71462544,64189.0,64188.0,0.013]
[1719164549696,2.71462544,64189.0,64188.0,0.007]
[1719164549889,2.5743845,64189.0,64188.0,0.007]
[1719164550244,2.5743845,64189.0,64185.0,0.08]
[1719164550245,1.738999,64186.0,64185.0,0.08]
[1719164550451,2.16139259,64186.0,64185.0,0.08]
[1719164551548,2.16139259,64186.0,64185.0,0.082]
[1719164551769,2.07584025,64186.0,64185.0,0.082]
[1719164551918,2.16150685,64186.0,64185.0,0.082]
[1719164552113,2.16150427,64186.0,64185.0,0.083]
[1719164552319,2.10077321,64186.0,64185.0,0.083]
[1719164554808,2.07584025,64186.0,64185.0,0.083]
[1719164555071,2.10080826,64186.0,64185.0,0.083]
[1719164555762,2.10079212,64186.0,64185.0,0.083]
[1719164557794,2.07584025,64186.0,64185.0,0.083]
[1719164558036,2.10076922,64186.0,64185.0,0.083]
[1719164558216,2.21755031,64186.0,64185.0,0.083]
[1719164558449,2.21756522,64186.0,64185.0,0.083]
[1719164561015,2.21755655,64186.0,64185.0,0.083]
[1719164561738,2.25218191,64186.0,64185.0,0.083]
[1719164562927,2.13540123,64186.0,64185.0,0.083]
[1719164563170,2.19602949,64186.0,64185.0,0.083]
[1719164563638,1.89992949,64186.0,64185.0,0.083]
[1719164563873,1.95232949,64186.0,64185.0,0.083]
[1719164564128,1.95222988,64186.0,64185.0,0.083]
[1719164565291,1.95238568,64186.0,64185.0,0.083]
[1719164566991,1.95225013,64186.0,64185.0,0.083]
[1719164570084,1.86692141,64186.0,64185.0,0.083]
[1719164570316,1.95257578,64186.0,64185.0,0.083]
[1719164572683,1.86692141,64186.0,64185.0,0.083]
[1719164572915,1.95252991,64186.0,64185.0,0.083]
[1719164573469,1.95253019,64186.0,64185.0,0.083]
[1719164575151,2.15253019,64186.0,64185.0,0.083]
[1719164575420,2.60434232,64186.0,64185.0,0.083]
[1719164575649,2.46412419,64186.0,64185.0,0.083]
[1719164576145,2.37851541,64186.0,64185.0,0.083]
[1719164576398,2.46363549,64186.0,64185.0,0.003]
[1719164576621,2.37851541,64186.0,64185.0,0.001]
[1719164576868,2.72016655,64186.0,64185.0,0.001]
[1719164577545,1.090645,64182.0,64181.0,0.000935]
[1719164577771,1.35927627,64182.0,64181.0,0.000935]
[1719164578968,1.91807039,64182.0,64181.0,0.000935]
[1719164579191,2.39101925,64182.0,64181.0,0.000935]
[1719164579466,2.47548439,64182.0,64181.0,0.000935]
[1719164579910,2.47548439,64182.0,64181.0,0.001935]
[1719164579911,2.47564019,64182.0,64181.0,0.001935]
[1719164582763,2.61594624,64182.0,64181.0,0.001935]
[1719164582964,2.36264624,64182.0,64181.0,0.001935]
[1719164583395,2.22234019,64182.0,64181.0,0.001935]
[1719164583762,2.47564019,64182.0,64181.0,0.001935]
[1719164583964,2.61594624,64182.0,64181.0,0.001935]
[1719164584405,2.47564019,64182.0,64181.0,0.001935]
[1719164584708,2.61654781,64182.0,64181.0,0.001935]
[1719164585127,2.61653869,64182.0,64181.0,0.001935]
[1719164586290,2.61653449,64182.0,64181.0,0.001935]
[1719164587551,2.61734298,64182.0,64181.0,0.001935]
[1719164589049,2.47706337,64182.0,64181.0,0.001935]
[1719164589250,2.22376337,64182.0,64181.0,0.001935]
[1719164589480,2.3640371,64182.0,64181.0,0.001935]
[1719164590655,2.13787505,64182.0,64181.0,0.001935]
[1719164590860,2.36355308,64182.0,64181.0,0.001935]
[1719164591477,2.38493513,64182.0,64181.0,0.001935]
[1719164593567,2.1592571,64182.0,64181.0,0.001935]
[1719164593787,2.38450929,64182.0,64181.0,0.001935]
[1719164594146,2.38441083,64182.0,64181.0,0.001935]
[1719164595368,2.38448643,64182.0,64181.0,0.001935]
[1719164596831,2.38441201,64182.0,64181.0,0.001935]
[1719164597589,2.08041201,64182.0,64181.0,0.001935]
[1719164597796,2.08040959,64182.0,64181.0,0.001935]
[1719164599738,2.02020266,64182.0,64181.0,0.001935]
[1719164599969,2.08069137,64182.0,64181.0,0.001935]
[1719164602937,2.0806871,64182.0,64181.0,0.001935]
[1719164603314,2.08054297,64182.0,64181.0,0.001935]
[1719164604538,2.02835755,64182.0,64181.0,0.001935]
[1719164604769,2.08075755,64182.0,64181.0,0.001935]
[1719164605729,2.00156461,64182.0,64181.0,0.001935]
[1719164605929,2.02051486,64182.0,64181.0,0.001935]
[1719164606130,2.08130141,64182.0,64181.0,0.001935]
[1719164608602,1.8552571,64182.0,64181.0,0.001935]
[1719164608816,2.08090181,64182.0,64181.0,0.001935]
[1719164611805,1.94102383,64182.0,64181.0,0.001935]
[1719164612031,2.0813244,64182.0,64181.0,0.001935]
[1719164612244,2.08159422,64182.0,64181.0,0.001935]
[1719164613414,2.08160731,64182.0,64181.0,0.001935]
[1719164614189,1.94129365,64182.0,64181.0,0.001935]
[1719164614744,1.91596428,64182.0,64181.0,0.001935]
[1719164614987,1.94086694,64182.0,64181.0,0.001935]
[1719164617940,1.8552571,64182.0,64181.0,0.001935]
[1719164618131,1.94116831,64182.0,64181.0,0.001935]
[1719164620913,1.94105235,64182.0,64181.0,0.001935]
[1719164621242,1.91605329,64182.0,64181.0,0.001935]
[1719164621441,1.94104998,64182.0,64181.0,0.001935]
[1719164624002,1.8028571,64182.0,64181.0,0.001935]
[1719164624202,1.88853923,64182.0,64181.0,0.001935]
[1719164624314,1.57692623,64182.0,64181.0,0.001935]
[1719164624514,1.62932623,64182.0,64181.0,0.001935]
[1719164626843,1.57041869,64182.0,64181.0,0.001935]
[1719164627067,1.6329071,64182.0,64181.0,0.001935]
[1719164629869,1.5436441,64182.0,64181.0,0.001935]
[1719164630088,1.6323875,64182.0,64181.0,0.001935]
[1719164630315,1.5436441,64182.0,64181.0,0.001935]
[1719164630541,1.63223117,64182.0,64181.0,0.001935]
[1719164633040,1.63199839,64182.0,64181.0,0.001935]
[1719164636065,1.56933814,64182.0,64181.0,0.001935]
[1719164636227,1.63079756,64182.0,64181.0,0.001935]
[1719164637240,1.57839756,64182.0,64181.0,0.001935]
[1719164637476,1.63079756,64182.0,64181.0,0.001935]
[1719164637993,1.57839756,64182.0,64181.0,0.565035]
[1719164638200,1.63079756,64182.0,64181.0,0.565035]
[1719164638430,0.15872997,64182.0,64181.0,0.740844]
[1719164638636,0.05872997,64182.0,64181.0,0.585035]
[1719164639085,0.17652218,64182.0,64181.0,0.585035]
[1719164639325,0.03303593,64182.0,64181.0,0.585035]
[1719164639586,0.05916025,64182.0,64181.0,0.585035]
[1719164640027,0.15916025,64182.0,64181.0,0.585035]
[1719164640248,0.15916025,64182.0,64181.0,0.584035]
[1719164640712,0.15905295,64182.0,64181.0,0.584035]
[1719164640931,0.15805295,64182.0,64181.0,0.584035]
[1719164641166,0.15805295,64182.0,64181.0,0.590035]
[1719164641667,0.15805295,64182.0,64181.0,0.597035]
[1719164641895,0.21971906,64182.0,64181.0,0.597035]
[1719164643012,0.27211906,64182.0,64181.0,0.597035]
[1719164643490,0.17857282,64182.0,64181.0,0.597035]
[1719164644390,0.17886185,64182.0,64181.0,0.597035]
[1719164645043,0.17971185,64182.0,64181.0,0.577035]
[1719164645260,0.17971185,64182.0,64181.0,0.597035]
[1719164645469,0.24983955,64182.0,64181.0,0.597035]
[1719164645682,0.24983955,64182.0,64181.0,0.577035]
[1719164647426,0.24983365,64182.0,64181.0,0.577035]
[1719164647651,0.2498305,64182.0,64181.0,0.577035]
[1719164647860,0.24955354,64182.0,64181.0,0.577035]
[1719164648080,0.33524106,64182.0,64181.0,0.577035]
[1719164648529,0.64685406,64182.0,64181.0,0.577035]
[1719164648759,0.64685406,64182.0,64181.0,0.266235]
[1719164648760,1.10720967,64182.0,64181.0,0.266235]
[1719164648985,1.51253267,64182.0,64181.0,0.013935]
[1719164649217,1.51203111,64182.0,64181.0,0.013935]
[1719164650065,1.39516697,64182.0,64181.0,0.013935]
[1719164650276,1.36963927,64182.0,64181.0,0.013935]
[1719164650754,1.3954175,64182.0,64181.0,0.013935]
[1719164653738,0.43125507,64182.0,64181.0,0.593035]
[1719164653939,0.36678302,64182.0,64181.0,0.593035]
[1719164654045,0.64651755,64182.0,64181.0,0.593035]
[1719164654885,0.71663345,64182.0,64181.0,0.613035]
[1719164655269,0.71663345,64182.0,64181.0,0.593035]
[1719164655560,0.71663345,64182.0,64181.0,0.613035]
[1719164656430,0.66423345,64182.0,64181.0,0.613035]
[1719164656662,0.64623391,64182.0,64181.0,0.613035]
[1719164657077,0.69297391,64182.0,64181.0,0.613035]
[1719164658608,0.69297391,64182.0,64181.0,0.593035]
[1719164658818,0.64623391,64182.0,64181.0,0.593035]
[1719164659676,0.64655955,64182.0,64181.0,0.593035]
[1719164659883,0.7166665,64182.0,64181.0,0.593035]
[1719164660515,0.64655955,64182.0,64181.0,0.593035]
[1719164660701,0.77191388,64182.0,64181.0,0.593035]
[1719164660924,0.74003548,64182.0,64181.0,0.593035]
[1719164661166,0.77191392,64182.0,64181.0,0.593035]
[1719164662017,1.08352692,64182.0,64181.0,0.593035]
[1719164662651,1.08356809,64182.0,64181.0,0.593035]
[1719164664513,1.03116809,64182.0,64181.0,0.593035]
[1719164664721,1.08356809,64182.0,64181.0,0.593035]
[1719164665667,1.00540051,64182.0,64181.0,0.593035]
[1719164665875,1.0837059,64182.0,64181.0,0.593035]
[1719164666094,0.96431624,64182.0,64181.0,0.593035]
[1719164666270,1.083714,64182.0,64181.0,0.593035]
[1719164667429,1.08380362,64182.0,64181.0,0.593035]
[1719164668786,1.083674,64182.0,64181.0,0.593035]
[1719164669935,0.719661,64182.0,64181.0,0.593035]
[1719164670170,0.772061,64182.0,64181.0,0.593035]
[1719164670531,0.719661,64182.0,64181.0,0.613035]
[1719164670935,0.66440982,64182.0,64181.0,0.613035]
[1719164671381,0.59427919,64182.0,64181.0,0.613035]
[1719164671774,0.59443559,64182.0,64181.0,0.613035]
[1719164672396,0.59443559,64182.0,64181.0,0.593035]
[1719164672752,0.59443559,64182.0,64181.0,0.613035]
[1719164674470,0.59443559,64182.0,64181.0,0.593035]
[1719164674819,0.5684248,64182.0,64181.0,0.593035]
[1719164675021,0.59427801,64182.0,64181.0,0.593035]
[1719164675224,0.62013122,64182.0,64181.0,0.593035]
[1719164675515,0.66440694,64182.0,64181.0,0.593035]
[1719164676161,0.66433016,64182.0,64181.0,0.593035]
[1719164676578,0.663574,64182.0,64181.0,0.593035]
[1719164680870,0.63849428,64182.0,64181.0,0.593035]
[1719164680999,0.6636041,64182.0,64181.0,0.593035]
[1719164681387,0.59345784,64182.0,64181.0,0.593035]
[1719164683631,0.68698619,64182.0,64181.0,0.593035]
[1719164683836,0.56834802,64182.0,64181.0,0.593035]
[1719164684042,0.6253401,64182.0,64181.0,0.593035]
[1719164684240,0.60022154,64182.0,64181.0,0.593035]
[1719164684440,0.62534048,64182.0,64181.0,0.593035]
[1719164684701,0.93695348,64182.0,64181.0,0.593035]
[1719164685287,0.62534048,64182.0,64181.0,0.593035]
[1719164685479,0.77130093,64182.0,64181.0,0.613035]
[1719164685682,0.73942741,64182.0,64181.0,0.613035]
[1719164685892,0.77130011,64182.0,64181.0,0.613035]
[1719164686960,0.77140464,64182.0,64181.0,0.613035]
[1719164687489,0.6778442,64182.0,64181.0,0.613035]
[1719164687815,0.77140468,64182.0,64181.0,0.613035]
[1719164688434,0.6778442,64182.0,64181.0,0.613035]
[1719164689672,0.77140482,64182.0,64181.0,0.613035]
[1719164690052,0.74618089,64182.0,64181.0,0.613035]
[1719164690251,0.77141252,64182.0,64181.0,0.613035]
[1719164692526,0.77141252,64182.0,64181.0,0.593035]
[1719164693165,0.77136412,64182.0,64181.0,0.593035]
[1719164693504,0.77136466,64182.0,64181.0,0.593035]